[Event "Titled Tuesday Blitz June 29 2021"]
[White "NoboaKevin1999"]
[Black "IMTominho"]
[WhiteElo "2435"]
[BlackElo "2838"]
[Result "0-1"]
[Round "01"]
[TimeControl "180+1"]
[Date "2021.06.29"]
[WhiteClock "0:00:01"]
[BlackClock "0:00:02"]

1. d4 {[%clk 0:02:43]}  d5 {[%clk 0:02:55]} 2. c4 {[%clk 0:02:42]}  c6 {[%clk 0:02:45]} 3. cxd5 {[%clk 0:02:39]}  cxd5 {[%clk 0:02:46]} 4. Bf4 {[%clk 0:02:38]}  Nf6 {[%clk 0:02:47]} 5. e3 {[%clk 0:02:36]}  Qb6 {[%clk 0:02:48]} 6. Nc3 {[%clk 0:02:33]}  Qxb2 {[%clk 0:02:47]} 7. Nge2 {[%clk 0:02:32]}  a6 {[%clk 0:02:27]} 8. h3 {[%clk 0:01:55]}  Nc6 {[%clk 0:02:22]} 9. g4 {[%clk 0:01:54]}  e6 {[%clk 0:01:57]} 10. Rb1 {[%clk 0:01:44]}  Qa3 {[%clk 0:01:56]} 11. Bg2 {[%clk 0:01:43]}  Qa5 {[%clk 0:01:30]} 12. O-O {[%clk 0:01:40]}  Be7 {[%clk 0:01:30]} 13. Na4 {[%clk 0:01:27]}  b5 {[%clk 0:01:20]} 14. Nc5 {[%clk 0:01:03]}  Bxc5 {[%clk 0:01:17]} 15. dxc5 {[%clk 0:01:04]}  O-O {[%clk 0:01:17]} 16. Nd4 {[%clk 0:00:48]}  Bd7 {[%clk 0:01:10]} 17. g5 {[%clk 0:00:37]}  Ne4 {[%clk 0:00:59]} 18. Bxe4 {[%clk 0:00:34]}  dxe4 {[%clk 0:01:00]} 19. Nxb5 {[%clk 0:00:32]}  axb5 {[%clk 0:00:55]} 20. Qxd7 {[%clk 0:00:32]}  Rfc8 {[%clk 0:00:53]} 21. Kg2 {[%clk 0:00:14]}  e5 {[%clk 0:00:41]} 22. Bg3 {[%clk 0:00:13]}  b4 {[%clk 0:00:41]} 23. Rbd1 {[%clk 0:00:08]}  Qxa2 {[%clk 0:00:40]} 24. Rd6 {[%clk 0:00:08]}  Qa4 {[%clk 0:00:37]} 25. h4 {[%clk 0:00:06]}  b3 {[%clk 0:00:24]} 26. h5 {[%clk 0:00:07]}  Nb4 {[%clk 0:00:21]} 27. Qf5 {[%clk 0:00:05]}  Rxc5 {[%clk 0:00:15]} 28. Rd7 {[%clk 0:00:04]}  Rf8 {[%clk 0:00:10]} 29. Rfd1 {[%clk 0:00:04]}  Qc6 {[%clk 0:00:09]} 30. Rxf7 {[%clk 0:00:03]}  Qc8 {[%clk 0:00:07]} 31. Rxf8+ {[%clk 0:00:02]}  Qxf8 {[%clk 0:00:07]} 32. Qe6+ {[%clk 0:00:03]}  Kh8 {[%clk 0:00:07]} 33. Bxe5 {[%clk 0:00:02]}  Nd3 {[%clk 0:00:06]} 34. Bg3 {[%clk 0:00:01]}  b2 {[%clk 0:00:05]} 35. g6 {[%clk 0:00:01]}  h6 {[%clk 0:00:05]} 36. Rb1 {[%clk 0:00:01]}  Rc1 {[%clk 0:00:05]} 37. Qa2 {[%clk 0:00:01]}  Rxb1 {[%clk 0:00:04]} 38. Qxb1 {[%clk 0:00:01]}  Qc8 {[%clk 0:00:04]} 39. Qa2 {[%clk 0:00:01]}  Qb7 {[%clk 0:00:03]} 40. Qe6 {[%clk 0:00:01]}  Qa8 {[%clk 0:00:02]} 0-1


[Site "https://www.chess.com"]

[Event "Titled Tuesday Blitz June 29 2021"]
[White "PavelShkapenko"]
[Black "esrosenberg"]
[WhiteElo "2702"]
[BlackElo "2365"]
[Result "0-1"]
[Round "01"]
[TimeControl "180+1"]
[Date "2021.06.29"]
[WhiteClock "0:00:06"]
[BlackClock "0:00:33"]

1. e4 {[%clk 0:03:00]}  e5 {[%clk 0:02:59]} 2. Nf3 {[%clk 0:03:00]}  Nc6 {[%clk 0:02:59]} 3. Bc4 {[%clk 0:02:58]}  Nf6 {[%clk 0:03:00]} 4. d3 {[%clk 0:02:57]}  Bc5 {[%clk 0:03:00]} 5. O-O {[%clk 0:02:56]}  a6 {[%clk 0:02:58]} 6. Be3 {[%clk 0:02:57]}  d6 {[%clk 0:02:57]} 7. Nc3 {[%clk 0:02:51]}  Bg4 {[%clk 0:02:53]} 8. h3 {[%clk 0:02:50]}  Bh5 {[%clk 0:02:52]} 9. g4 {[%clk 0:02:41]}  Nxg4 {[%clk 0:02:39]} 10. hxg4 {[%clk 0:02:40]}  Bxg4 {[%clk 0:02:40]} 11. Kg2 {[%clk 0:02:34]}  Nd4 {[%clk 0:02:26]} 12. Bxd4 {[%clk 0:02:33]}  exd4 {[%clk 0:02:25]} 13. Ne2 {[%clk 0:02:23]}  Qf6 {[%clk 0:01:57]} 14. Ng3 {[%clk 0:02:21]}  h5 {[%clk 0:01:57]} 15. Rh1 {[%clk 0:01:17]}  h4 {[%clk 0:01:46]} 16. Nf1 {[%clk 0:00:36]}  h3+ {[%clk 0:01:36]} 17. Kg3 {[%clk 0:00:36]}  g5 {[%clk 0:01:12]} 18. Kh2 {[%clk 0:00:17]}  Bxf3 {[%clk 0:01:09]} 19. Qd2 {[%clk 0:00:18]}  Bxh1 {[%clk 0:01:06]} 20. Ng3 {[%clk 0:00:18]}  Bg2 {[%clk 0:01:01]} 21. Nf5 {[%clk 0:00:16]}  Qe5+ {[%clk 0:00:57]} 22. f4 {[%clk 0:00:15]}  Qxf4+ {[%clk 0:00:54]} 23. Qxf4 {[%clk 0:00:15]}  gxf4 {[%clk 0:00:55]} 24. b4 {[%clk 0:00:14]}  Bb6 {[%clk 0:00:53]} 25. e5 {[%clk 0:00:10]}  dxe5 {[%clk 0:00:49]} 26. Re1 {[%clk 0:00:10]}  f6 {[%clk 0:00:48]} 27. a4 {[%clk 0:00:09]}  O-O-O {[%clk 0:00:46]} 28. a5 {[%clk 0:00:09]}  Ba7 {[%clk 0:00:47]} 29. b5 {[%clk 0:00:10]}  axb5 {[%clk 0:00:47]} 30. Bxb5 {[%clk 0:00:10]}  c6 {[%clk 0:00:47]} 31. Bc4 {[%clk 0:00:10]}  Kb8 {[%clk 0:00:45]} 32. Rb1 {[%clk 0:00:10]}  Ka8 {[%clk 0:00:44]} 33. a6 {[%clk 0:00:10]}  b5 {[%clk 0:00:44]} 34. Be6 {[%clk 0:00:10]}  Rh7 {[%clk 0:00:40]} 35. c3 {[%clk 0:00:08]}  dxc3 {[%clk 0:00:37]} 36. Rc1 {[%clk 0:00:09]}  Bd4 {[%clk 0:00:35]} 37. a7 {[%clk 0:00:07]}  Rxa7 {[%clk 0:00:34]} 38. Nh4 {[%clk 0:00:07]}  Ra2 {[%clk 0:00:33]} 39. Ng6 {[%clk 0:00:06]}  Bd5+ {[%clk 0:00:32]} 40. Kxh3 {[%clk 0:00:06]}  Bxe6+ {[%clk 0:00:33]} 0-1


[Site "https://www.chess.com"]

[Event "Titled Tuesday Blitz June 29 2021"]
[White "PlotnikovPavel"]
[Black "Hikaru"]
[WhiteElo "2470"]
[BlackElo "3161"]
[Result "0-1"]
[Round "01"]
[TimeControl "180+1"]
[Date "2021.06.29"]
[WhiteClock "0:01:31"]
[BlackClock "0:01:59"]

1. e4 {[%clk 0:03:00]}  g6 {[%clk 0:02:57]} 2. d4 {[%clk 0:03:00]}  Bg7 {[%clk 0:02:57]} 3. Nc3 {[%clk 0:03:00]}  c6 {[%clk 0:02:56]} 4. Nge2 {[%clk 0:02:59]}  d5 {[%clk 0:02:56]} 5. e5 {[%clk 0:02:56]}  f6 {[%clk 0:02:53]} 6. Bf4 {[%clk 0:02:53]}  Nh6 {[%clk 0:02:52]} 7. Qd2 {[%clk 0:02:47]}  Nf7 {[%clk 0:02:52]} 8. exf6 {[%clk 0:02:45]}  exf6 {[%clk 0:02:53]} 9. O-O-O {[%clk 0:02:45]}  O-O {[%clk 0:02:47]} 10. h4 {[%clk 0:02:44]}  Re8 {[%clk 0:02:44]} 11. Be3 {[%clk 0:02:43]}  Nd7 {[%clk 0:02:43]} 12. Nf4 {[%clk 0:02:42]}  Nb6 {[%clk 0:02:40]} 13. b3 {[%clk 0:02:41]}  Nd6 {[%clk 0:02:36]} 14. f3 {[%clk 0:02:37]}  Nf5 {[%clk 0:02:30]} 15. Bf2 {[%clk 0:02:37]}  Bh6 {[%clk 0:02:30]} 16. g4 {[%clk 0:02:35]}  Qd6 {[%clk 0:02:27]} 17. Nce2 {[%clk 0:02:30]}  Rxe2 {[%clk 0:02:26]} 18. Qxe2 {[%clk 0:02:25]}  Bxf4+ {[%clk 0:02:25]} 19. Kb2 {[%clk 0:02:24]}  Ng7 {[%clk 0:02:25]} 20. Be3 {[%clk 0:02:10]}  Bd7 {[%clk 0:02:19]} 21. Bxf4 {[%clk 0:02:09]}  Qxf4 {[%clk 0:02:20]} 22. Qd3 {[%clk 0:02:09]}  Re8 {[%clk 0:02:18]} 23. Be2 {[%clk 0:02:09]}  Qe3 {[%clk 0:02:15]} 24. Qxe3 {[%clk 0:02:08]}  Rxe3 {[%clk 0:02:15]} 25. Rhe1 {[%clk 0:02:08]}  Ne6 {[%clk 0:02:14]} 26. c3 {[%clk 0:02:03]}  Nf4 {[%clk 0:02:14]} 27. Rd2 {[%clk 0:02:04]}  Nc8 {[%clk 0:02:07]} 28. Kc2 {[%clk 0:02:03]}  Nd6 {[%clk 0:02:07]} 29. Kd1 {[%clk 0:01:42]}  Rxc3 {[%clk 0:02:05]} 30. Bf1 {[%clk 0:01:39]}  Rxf3 {[%clk 0:02:04]} 31. Bg2 {[%clk 0:01:33]}  Nxg2 {[%clk 0:02:04]} 32. Rxg2 {[%clk 0:01:34]}  Ne4 {[%clk 0:02:04]} 33. Kc2 {[%clk 0:01:34]}  Rf4 {[%clk 0:02:03]} 34. g5 {[%clk 0:01:33]}  Rxh4 {[%clk 0:02:01]} 35. gxf6 {[%clk 0:01:33]}  Bf5 {[%clk 0:02:02]} 36. Kb2 {[%clk 0:01:33]}  Kf7 {[%clk 0:02:02]} 37. b4 {[%clk 0:01:31]}  Nd6 {[%clk 0:02:01]} 38. a4 {[%clk 0:01:31]}  Kxf6 {[%clk 0:02:01]} 39. Kc3 {[%clk 0:01:31]}  Rh3+ {[%clk 0:02:00]} 40. Kb2 {[%clk 0:01:31]}  Nc4+ {[%clk 0:02:00]} 41. Ka2 {[%clk 0:01:31]}  Ra3# {[%clk 0:01:59]} 0-1


[Site "https://www.chess.com"]

[Event "Titled Tuesday Blitz June 29 2021"]
[White "SaraBlackPanther"]
[Black "Flopezin"]
[WhiteElo "2703"]
[BlackElo "2367"]
[Result "1-0"]
[Round "01"]
[TimeControl "180+1"]
[Date "2021.06.29"]
[WhiteClock "0:02:26"]
[BlackClock "0:02:16"]

1. d4 {[%clk 0:03:00]}  Nf6 {[%clk 0:03:00]} 2. c4 {[%clk 0:03:00]}  e6 {[%clk 0:03:00]} 3. Nf3 {[%clk 0:03:00]}  c5 {[%clk 0:03:00]} 4. d5 {[%clk 0:03:00]}  d6 {[%clk 0:03:01]} 5. Nc3 {[%clk 0:03:00]}  exd5 {[%clk 0:03:01]} 6. cxd5 {[%clk 0:02:59]}  g6 {[%clk 0:03:02]} 7. Bf4 {[%clk 0:03:00]}  Bg7 {[%clk 0:02:56]} 8. Qa4+ {[%clk 0:02:58]}  Bd7 {[%clk 0:02:51]} 9. Qb3 {[%clk 0:02:58]}  Qc7 {[%clk 0:02:46]} 10. e4 {[%clk 0:02:57]}  a6 {[%clk 0:02:45]} 11. e5 {[%clk 0:02:49]}  Nh5 {[%clk 0:02:44]} 12. exd6 {[%clk 0:02:48]}  Qc8 {[%clk 0:02:42]} 13. Be3 {[%clk 0:02:46]}  Bg4 {[%clk 0:02:36]} 14. Nd2 {[%clk 0:02:42]}  O-O {[%clk 0:02:32]} 15. h3 {[%clk 0:02:40]}  Bd7 {[%clk 0:02:33]} 16. Nc4 {[%clk 0:02:39]}  b5 {[%clk 0:02:31]} 17. Nb6 {[%clk 0:02:38]}  Qb7 {[%clk 0:02:32]} 18. Nxa8 {[%clk 0:02:38]}  Qxa8 {[%clk 0:02:33]} 19. Be2 {[%clk 0:02:37]}  Nf6 {[%clk 0:02:32]} 20. Bxc5 {[%clk 0:02:35]}  Ne8 {[%clk 0:02:31]} 21. O-O {[%clk 0:02:34]}  Nf6 {[%clk 0:02:24]} 22. a4 {[%clk 0:02:31]}  Rc8 {[%clk 0:02:25]} 23. Bd4 {[%clk 0:02:29]}  bxa4 {[%clk 0:02:25]} 24. Nxa4 {[%clk 0:02:29]}  Bxa4 {[%clk 0:02:20]} 25. Rxa4 {[%clk 0:02:27]}  Nbd7 {[%clk 0:02:16]} 26. Rxa6 {[%clk 0:02:26]} 1-0


[Site "https://www.chess.com"]

[Event "Titled Tuesday Blitz June 29 2021"]
[White "Semen_Khanin"]
[Black "elene-tsotsonava"]
[WhiteElo "2753"]
[BlackElo "2395"]
[Result "0-1"]
[Round "01"]
[TimeControl "180+1"]
[Date "2021.06.29"]
[WhiteClock "0:00:36"]
[BlackClock "0:00:41"]

1. Nf3 {[%clk 0:03:00]}  d5 {[%clk 0:02:59]} 2. g3 {[%clk 0:03:00]}  Nf6 {[%clk 0:02:58]} 3. Bg2 {[%clk 0:03:01]}  Nc6 {[%clk 0:02:56]} 4. d4 {[%clk 0:03:00]}  Bf5 {[%clk 0:02:54]} 5. O-O {[%clk 0:02:59]}  e6 {[%clk 0:02:51]} 6. c3 {[%clk 0:02:57]}  h6 {[%clk 0:02:50]} 7. a4 {[%clk 0:02:53]}  Bd6 {[%clk 0:02:50]} 8. a5 {[%clk 0:02:52]}  Ne7 {[%clk 0:02:48]} 9. Na3 {[%clk 0:02:50]}  a6 {[%clk 0:02:46]} 10. Ne5 {[%clk 0:02:40]}  O-O {[%clk 0:02:44]} 11. c4 {[%clk 0:02:35]}  c6 {[%clk 0:02:29]} 12. c5 {[%clk 0:02:31]}  Bxe5 {[%clk 0:02:09]} 13. dxe5 {[%clk 0:02:31]}  Nd7 {[%clk 0:02:09]} 14. Qd4 {[%clk 0:02:24]}  Qxa5 {[%clk 0:02:08]} 15. b4 {[%clk 0:02:21]}  Qc7 {[%clk 0:02:08]} 16. Bb2 {[%clk 0:02:20]}  f6 {[%clk 0:01:46]} 17. exf6 {[%clk 0:02:14]}  Nxf6 {[%clk 0:01:47]} 18. h3 {[%clk 0:01:54]}  Bh7 {[%clk 0:01:36]} 19. g4 {[%clk 0:01:54]}  Ng6 {[%clk 0:01:34]} 20. f4 {[%clk 0:01:50]}  Nh4 {[%clk 0:01:33]} 21. Bh1 {[%clk 0:01:43]}  Be4 {[%clk 0:01:15]} 22. Bxe4 {[%clk 0:01:43]}  Nxe4 {[%clk 0:01:16]} 23. Nc2 {[%clk 0:01:43]}  Rae8 {[%clk 0:01:10]} 24. Ne3 {[%clk 0:01:21]}  Ng3 {[%clk 0:01:07]} 25. Rf2 {[%clk 0:01:19]}  Rxf4 {[%clk 0:01:06]} 26. Qxf4 {[%clk 0:00:50]}  Nxe2+ {[%clk 0:01:04]} 27. Rxe2 {[%clk 0:00:47]}  Qxf4 {[%clk 0:01:00]} 28. Rf1 {[%clk 0:00:46]}  Qg3+ {[%clk 0:00:56]} 29. Ng2 {[%clk 0:00:43]}  Nf3+ {[%clk 0:00:54]} 30. Rxf3 {[%clk 0:00:42]}  Qxf3 {[%clk 0:00:55]} 31. Re3 {[%clk 0:00:43]}  Qd1+ {[%clk 0:00:50]} 32. Kh2 {[%clk 0:00:43]}  e5 {[%clk 0:00:48]} 33. Bxe5 {[%clk 0:00:43]}  d4 {[%clk 0:00:46]} 34. Re4 {[%clk 0:00:40]}  d3 {[%clk 0:00:45]} 35. Nf4 {[%clk 0:00:36]}  Qf3 {[%clk 0:00:41]} 0-1


[Site "https://www.chess.com"]

[Event "Titled Tuesday Blitz June 29 2021"]
[White "Sergey85Rodchenkov"]
[Black "Oleksandr_Bortnyk"]
[WhiteElo "2466"]
[BlackElo "3010"]
[Result "0-1"]
[Round "01"]
[TimeControl "180+1"]
[Date "2021.06.29"]
[WhiteClock "0:00:37"]
[BlackClock "0:01:59"]

1. e4 {[%clk 0:03:00]}  Nf6 {[%clk 0:02:57]} 2. e5 {[%clk 0:03:00]}  Nd5 {[%clk 0:02:57]} 3. d4 {[%clk 0:03:00]}  d6 {[%clk 0:02:57]} 4. c4 {[%clk 0:03:01]}  Nb6 {[%clk 0:02:57]} 5. exd6 {[%clk 0:03:01]}  cxd6 {[%clk 0:02:57]} 6. Nc3 {[%clk 0:02:59]}  g6 {[%clk 0:02:57]} 7. Be3 {[%clk 0:02:59]}  Bg7 {[%clk 0:02:57]} 8. Rc1 {[%clk 0:02:58]}  h5 {[%clk 0:02:51]} 9. b3 {[%clk 0:02:54]}  Bg4 {[%clk 0:02:50]} 10. Qd2 {[%clk 0:02:46]}  O-O {[%clk 0:02:31]} 11. h3 {[%clk 0:02:41]}  Bf5 {[%clk 0:02:31]} 12. Bd3 {[%clk 0:02:39]}  Bxd3 {[%clk 0:02:25]} 13. Qxd3 {[%clk 0:02:39]}  e5 {[%clk 0:02:26]} 14. dxe5 {[%clk 0:02:23]}  dxe5 {[%clk 0:02:25]} 15. Qxd8 {[%clk 0:02:14]}  Rxd8 {[%clk 0:02:26]} 16. Nf3 {[%clk 0:02:04]}  Nc6 {[%clk 0:02:22]} 17. Rd1 {[%clk 0:01:53]}  f5 {[%clk 0:02:18]} 18. Ke2 {[%clk 0:01:39]}  e4 {[%clk 0:02:16]} 19. Nh4 {[%clk 0:01:05]}  Bxc3 {[%clk 0:02:14]} 20. Nxg6 {[%clk 0:01:05]}  Kf7 {[%clk 0:02:09]} 21. Nf4 {[%clk 0:00:59]}  h4 {[%clk 0:02:09]} 22. Rxd8 {[%clk 0:00:45]}  Rxd8 {[%clk 0:02:10]} 23. Bxb6 {[%clk 0:00:37]}  axb6 {[%clk 0:02:09]} 24. Nd5 {[%clk 0:00:37]}  Bd4 {[%clk 0:01:59]} 0-1


[Site "https://www.chess.com"]

[Event "Titled Tuesday Blitz June 29 2021"]
[White "SergeyShtyka"]
[Black "SantoBlue"]
[WhiteElo "2411"]
[BlackElo "2788"]
[Result "0-1"]
[Round "01"]
[TimeControl "180+1"]
[Date "2021.06.29"]
[WhiteClock "0:00:51"]
[BlackClock "0:01:15"]

1. e4 {[%clk 0:02:59]}  c5 {[%clk 0:02:57]} 2. Nf3 {[%clk 0:02:59]}  e6 {[%clk 0:02:56]} 3. d4 {[%clk 0:02:58]}  cxd4 {[%clk 0:02:56]} 4. Nxd4 {[%clk 0:02:59]}  a6 {[%clk 0:02:57]} 5. Nc3 {[%clk 0:02:59]}  b5 {[%clk 0:02:56]} 6. Bd3 {[%clk 0:02:58]}  Bb7 {[%clk 0:02:55]} 7. O-O {[%clk 0:02:58]}  d6 {[%clk 0:02:54]} 8. a3 {[%clk 0:02:56]}  Nf6 {[%clk 0:02:54]} 9. Be3 {[%clk 0:02:56]}  Be7 {[%clk 0:02:54]} 10. f4 {[%clk 0:02:56]}  Nbd7 {[%clk 0:02:50]} 11. Qf3 {[%clk 0:02:56]}  Nc5 {[%clk 0:02:49]} 12. Rae1 {[%clk 0:02:54]}  Rc8 {[%clk 0:02:48]} 13. Kh1 {[%clk 0:02:53]}  O-O {[%clk 0:02:48]} 14. Bf2 {[%clk 0:02:52]}  g6 {[%clk 0:02:37]} 15. Qh3 {[%clk 0:02:43]}  e5 {[%clk 0:02:31]} 16. fxe5 {[%clk 0:01:55]}  dxe5 {[%clk 0:02:31]} 17. Nb3 {[%clk 0:01:54]}  Nxd3 {[%clk 0:02:06]} 18. Qxd3 {[%clk 0:01:51]}  Qxd3 {[%clk 0:01:56]} 19. cxd3 {[%clk 0:01:52]}  Rfd8 {[%clk 0:01:55]} 20. d4 {[%clk 0:01:36]}  Ng4 {[%clk 0:01:45]} 21. Bg1 {[%clk 0:01:33]}  Bxa3 {[%clk 0:01:43]} 22. bxa3 {[%clk 0:01:19]}  Rxc3 {[%clk 0:01:43]} 23. Nc5 {[%clk 0:01:19]}  Bc8 {[%clk 0:01:41]} 24. h3 {[%clk 0:01:16]}  exd4 {[%clk 0:01:42]} 25. Nxa6 {[%clk 0:01:06]}  Bxa6 {[%clk 0:01:36]} 26. hxg4 {[%clk 0:01:06]}  Rxa3 {[%clk 0:01:32]} 27. Ra1 {[%clk 0:01:03]}  b4 {[%clk 0:01:31]} 28. Rxa3 {[%clk 0:01:01]}  bxa3 {[%clk 0:01:27]} 29. Ra1 {[%clk 0:00:59]}  d3 {[%clk 0:01:28]} 30. Be3 {[%clk 0:00:57]}  d2 {[%clk 0:01:28]} 31. Bxd2 {[%clk 0:00:57]}  Rxd2 {[%clk 0:01:27]} 32. Rxa3 {[%clk 0:00:58]}  Bb7 {[%clk 0:01:27]} 33. Re3 {[%clk 0:00:55]}  Rd4 {[%clk 0:01:27]} 34. e5 {[%clk 0:00:54]}  Rxg4 {[%clk 0:01:27]} 35. e6 {[%clk 0:00:51]}  Bxg2+ {[%clk 0:01:25]} 36. Kh2 {[%clk 0:00:51]}  fxe6 {[%clk 0:01:22]} 37. Rxe6 {[%clk 0:00:51]}  Bd5 {[%clk 0:01:18]} 38. Re5 {[%clk 0:00:50]}  Bf7 {[%clk 0:01:17]} 39. Kh3 {[%clk 0:00:51]}  h5 {[%clk 0:01:15]} 0-1


[Site "https://www.chess.com"]

[Event "Titled Tuesday Blitz June 29 2021"]
[White "ShapkinAnatoliy"]
[Black "PowerThinking2650"]
[WhiteElo "2706"]
[BlackElo "2375"]
[Result "0-1"]
[Round "01"]
[TimeControl "180+1"]
[Date "2021.06.29"]
[WhiteClock "0:00:49"]
[BlackClock "0:00:08"]

1. d4 {[%clk 0:03:00]}  Nf6 {[%clk 0:02:59]} 2. c4 {[%clk 0:03:01]}  g6 {[%clk 0:02:59]} 3. Nc3 {[%clk 0:03:00]}  Bg7 {[%clk 0:02:59]} 4. Nf3 {[%clk 0:03:01]}  O-O {[%clk 0:02:59]} 5. e4 {[%clk 0:03:02]}  d6 {[%clk 0:03:00]} 6. Be2 {[%clk 0:02:59]}  e5 {[%clk 0:03:00]} 7. O-O {[%clk 0:02:59]}  Nc6 {[%clk 0:03:00]} 8. dxe5 {[%clk 0:02:59]}  dxe5 {[%clk 0:02:59]} 9. Bg5 {[%clk 0:02:59]}  Qxd1 {[%clk 0:02:44]} 10. Rfxd1 {[%clk 0:03:00]}  Bg4 {[%clk 0:02:44]} 11. h3 {[%clk 0:02:59]}  Bxf3 {[%clk 0:02:44]} 12. Bxf3 {[%clk 0:03:00]}  Nd4 {[%clk 0:02:42]} 13. Nd5 {[%clk 0:03:00]}  Nxd5 {[%clk 0:02:30]} 14. cxd5 {[%clk 0:03:01]}  Rac8 {[%clk 0:01:51]} 15. Rac1 {[%clk 0:02:56]}  f5 {[%clk 0:01:42]} 16. Kf1 {[%clk 0:02:37]}  Rf7 {[%clk 0:01:17]} 17. Be3 {[%clk 0:02:32]}  Nxf3 {[%clk 0:00:51]} 18. gxf3 {[%clk 0:02:33]}  f4 {[%clk 0:00:46]} 19. Bxa7 {[%clk 0:02:27]}  Ra8 {[%clk 0:00:44]} 20. Bc5 {[%clk 0:02:27]}  Rxa2 {[%clk 0:00:43]} 21. Ba3 {[%clk 0:02:28]}  Bf8 {[%clk 0:00:41]} 22. Bxf8 {[%clk 0:01:55]}  Kxf8 {[%clk 0:00:42]} 23. Rc2 {[%clk 0:01:55]}  Ke8 {[%clk 0:00:35]} 24. Rdc1 {[%clk 0:01:54]}  Kd8 {[%clk 0:00:34]} 25. Ke2 {[%clk 0:01:52]}  Rd7 {[%clk 0:00:31]} 26. b4 {[%clk 0:01:52]}  Rxc2+ {[%clk 0:00:28]} 27. Rxc2 {[%clk 0:01:53]}  Rd6 {[%clk 0:00:28]} 28. Kd3 {[%clk 0:01:51]}  Ra6 {[%clk 0:00:28]} 29. Ke2 {[%clk 0:01:40]}  Ra4 {[%clk 0:00:23]} 30. Rb2 {[%clk 0:01:38]}  b5 {[%clk 0:00:23]} 31. Kf1 {[%clk 0:01:37]}  Kd7 {[%clk 0:00:23]} 32. Kg2 {[%clk 0:01:38]}  g5 {[%clk 0:00:20]} 33. h4 {[%clk 0:01:37]}  gxh4 {[%clk 0:00:18]} 34. Kh3 {[%clk 0:01:37]}  Ra3 {[%clk 0:00:18]} 35. Kg4 {[%clk 0:01:36]}  h3 {[%clk 0:00:18]} 36. Rb1 {[%clk 0:01:37]}  h5+ {[%clk 0:00:13]} 37. Kf5 {[%clk 0:01:27]}  Rxf3 {[%clk 0:00:11]} 38. Kxe5 {[%clk 0:01:25]}  h2 {[%clk 0:00:09]} 39. Kf6 {[%clk 0:01:22]}  Rxf2 {[%clk 0:00:08]} 40. e5 {[%clk 0:01:22]}  Rg2 {[%clk 0:00:08]} 41. e6+ {[%clk 0:01:13]}  Kd6 {[%clk 0:00:08]} 42. Rh1 {[%clk 0:01:09]}  Re2 {[%clk 0:00:08]} 43. e7 {[%clk 0:01:03]}  Rxe7 {[%clk 0:00:07]} 44. Rxh2 {[%clk 0:01:04]}  Re4 {[%clk 0:00:07]} 45. Rxh5 {[%clk 0:01:00]}  Rxb4 {[%clk 0:00:07]} 46. Rh8 {[%clk 0:00:56]}  Kxd5 {[%clk 0:00:07]} 47. Kf5 {[%clk 0:00:56]}  c5 {[%clk 0:00:07]} 48. Rd8+ {[%clk 0:00:56]}  Kc4 {[%clk 0:00:07]} 49. Kxf4 {[%clk 0:00:56]}  Kb3+ {[%clk 0:00:07]} 50. Ke3 {[%clk 0:00:57]}  c4 {[%clk 0:00:08]} 51. Kd2 {[%clk 0:00:56]}  Ra4 {[%clk 0:00:08]} 52. Rh8 {[%clk 0:00:53]}  Ra2+ {[%clk 0:00:08]} 53. Kc1 {[%clk 0:00:53]}  Ra1+ {[%clk 0:00:09]} 54. Kd2 {[%clk 0:00:54]}  b4 {[%clk 0:00:09]} 55. Ke3 {[%clk 0:00:53]}  c3 {[%clk 0:00:10]} 56. Kd4 {[%clk 0:00:52]}  c2 {[%clk 0:00:10]} 57. Rh3+ {[%clk 0:00:52]}  Kb2 {[%clk 0:00:10]} 58. Kc4 {[%clk 0:00:51]}  b3 {[%clk 0:00:10]} 59. Kb4 {[%clk 0:00:52]}  c1=Q {[%clk 0:00:09]} 60. Rxb3+ {[%clk 0:00:52]}  Ka2 {[%clk 0:00:09]} 61. Ka4 {[%clk 0:00:49]}  Qc2 {[%clk 0:00:08]} 0-1


[Site "https://www.chess.com"]

[Event "Titled Tuesday Blitz June 29 2021"]
[White "Sharpchess22"]
[Black "iceboy88"]
[WhiteElo "2854"]
[BlackElo "2440"]
[Result "1-0"]
[Round "01"]
[TimeControl "180+1"]
[Date "2021.06.29"]
[WhiteClock "0:01:46"]
[BlackClock "0:00:13"]

1. d4 {[%clk 0:03:00]}  Nf6 {[%clk 0:02:58]} 2. Bg5 {[%clk 0:03:00]}  d5 {[%clk 0:02:57]} 3. Nd2 {[%clk 0:03:00]}  Nbd7 {[%clk 0:02:55]} 4. e3 {[%clk 0:03:00]}  h6 {[%clk 0:02:54]} 5. Bh4 {[%clk 0:03:00]}  e6 {[%clk 0:02:53]} 6. Bd3 {[%clk 0:02:58]}  c5 {[%clk 0:02:53]} 7. c3 {[%clk 0:02:58]}  Bd6 {[%clk 0:02:51]} 8. f4 {[%clk 0:02:55]}  a6 {[%clk 0:02:46]} 9. Ngf3 {[%clk 0:02:53]}  b5 {[%clk 0:02:45]} 10. a3 {[%clk 0:02:52]}  Qb6 {[%clk 0:02:45]} 11. O-O {[%clk 0:02:45]}  Bb7 {[%clk 0:02:45]} 12. Kh1 {[%clk 0:02:41]}  Ne4 {[%clk 0:02:35]} 13. Ne5 {[%clk 0:02:33]}  Nxd2 {[%clk 0:02:25]} 14. Nxd7 {[%clk 0:02:28]}  Kxd7 {[%clk 0:02:25]} 15. Qxd2 {[%clk 0:02:28]}  f5 {[%clk 0:02:14]} 16. a4 {[%clk 0:02:22]}  c4 {[%clk 0:02:12]} 17. Bc2 {[%clk 0:02:14]}  g5 {[%clk 0:02:06]} 18. Bg3 {[%clk 0:02:12]}  h5 {[%clk 0:01:57]} 19. fxg5 {[%clk 0:02:10]}  Bxg3 {[%clk 0:01:56]} 20. hxg3 {[%clk 0:02:11]}  Rag8 {[%clk 0:01:50]} 21. e4 {[%clk 0:02:09]}  dxe4 {[%clk 0:01:48]} 22. d5 {[%clk 0:02:10]}  Bxd5 {[%clk 0:01:46]} 23. axb5 {[%clk 0:02:04]}  axb5 {[%clk 0:01:37]} 24. Rxf5 {[%clk 0:02:03]}  exf5 {[%clk 0:00:53]} 25. Qxd5+ {[%clk 0:01:59]}  Kc7 {[%clk 0:00:48]} 26. Qe5+ {[%clk 0:01:56]}  Kb7 {[%clk 0:00:33]} 27. Qxf5 {[%clk 0:01:56]}  Re8 {[%clk 0:00:21]} 28. Bxe4+ {[%clk 0:01:53]}  Kc7 {[%clk 0:00:18]} 29. Qf7+ {[%clk 0:01:49]}  Kd6 {[%clk 0:00:17]} 30. Rd1+ {[%clk 0:01:47]}  Ke5 {[%clk 0:00:13]} 31. Qf5# {[%clk 0:01:46]} 1-0


[Site "https://www.chess.com"]

[Event "Titled Tuesday Blitz June 29 2021"]
[White "TigrVShlyape"]
[Black "rookoco"]
[WhiteElo "2854"]
[BlackElo "2437"]
[Result "1/2-1/2"]
[Round "01"]
[TimeControl "180+1"]
[Date "2021.06.29"]
[WhiteClock "0:01:02"]
[BlackClock "0:00:33"]

1. d4 {[%clk 0:03:00]}  d5 {[%clk 0:02:58]} 2. Nf3 {[%clk 0:02:59]}  Nf6 {[%clk 0:02:57]} 3. Bf4 {[%clk 0:02:59]}  c6 {[%clk 0:02:50]} 4. e3 {[%clk 0:02:58]}  Nbd7 {[%clk 0:02:48]} 5. c4 {[%clk 0:02:54]}  Nb6 {[%clk 0:02:44]} 6. cxd5 {[%clk 0:02:39]}  Nbxd5 {[%clk 0:02:41]} 7. Be5 {[%clk 0:02:36]}  Bf5 {[%clk 0:02:40]} 8. a3 {[%clk 0:02:14]}  Ng4 {[%clk 0:02:22]} 9. Qd2 {[%clk 0:01:58]}  Nxe5 {[%clk 0:02:13]} 10. Nxe5 {[%clk 0:01:57]}  g6 {[%clk 0:02:02]} 11. Be2 {[%clk 0:01:46]}  Bg7 {[%clk 0:01:56]} 12. Nf3 {[%clk 0:01:46]}  O-O {[%clk 0:01:44]} 13. O-O {[%clk 0:01:46]}  Rc8 {[%clk 0:01:36]} 14. Rc1 {[%clk 0:01:44]}  Qb6 {[%clk 0:01:07]} 15. b4 {[%clk 0:01:38]}  Rfd8 {[%clk 0:01:03]} 16. Nc3 {[%clk 0:01:36]}  Nxc3 {[%clk 0:00:53]} 17. Qxc3 {[%clk 0:01:35]}  Bg4 {[%clk 0:00:46]} 18. Rab1 {[%clk 0:01:26]}  e5 {[%clk 0:00:40]} 19. dxe5 {[%clk 0:01:24]}  Qc7 {[%clk 0:00:35]} 20. h3 {[%clk 0:01:18]}  Bxf3 {[%clk 0:00:35]} 21. Bxf3 {[%clk 0:01:19]}  Bxe5 {[%clk 0:00:35]} 22. Qc2 {[%clk 0:01:15]}  Qe7 {[%clk 0:00:35]} 23. Rd1 {[%clk 0:01:06]}  Rxd1+ {[%clk 0:00:32]} 24. Rxd1 {[%clk 0:01:06]}  Rd8 {[%clk 0:00:33]} 25. Rxd8+ {[%clk 0:01:03]}  Qxd8 {[%clk 0:00:34]} 26. g3 {[%clk 0:01:03]}  Qd6 {[%clk 0:00:33]} 27. Kg2 {[%clk 0:01:02]}  Kg7 {[%clk 0:00:33]} 1/2-1/2


[Site "https://www.chess.com"]